[Event "15th Governor Cup 2019"]
[Site "Khanty-Mansiysk"]
[Date "2019.11.20"]
[Round "3.21"]
[White "Mironenko, Galina"]
[Black "Ryabov, Georgi"]
[Result "0-1"]
[ECO "B03"]
[WhiteElo "2236"]
[BlackElo "1887"]
[Annotator "ChessBase"]
[PlyCount "80"]
[EventDate "2019.11.19"]
[EventType "swiss"]
[EventCountry "RUS"]
[SourceTitle "playchess.com"]
[Source "ChessBase"]
[SourceQuality "1"]
[TimeControl "5400+30"]

1. e4 {[%emt 0:00:00]} Nf6 {[%emt 0:02:22]} 2. e5 {[%emt 0:01:12]} Nd5 {[%emt 0:01:13]} 3. d4 {[%emt 0:00:48]} d6 {[%emt 0:00:52]} 4. c4 {[%emt 0:00:30]} Nb6 {[%emt 0:00:06]} 5. exd6 {[%emt 0:01:32]} cxd6 {[%emt 0:00:15]} 6. Nf3 {[%emt 0:03:41]} g6 {[%emt 0:00:26]} 7. b3 {[%emt 0:02:08]} Bg7 {[%emt 0:00:59]} 8. Bb2 {[%emt 0:00:36]} O-O {[%emt 0:01:09]} 9. Be2 {[%emt 0:01:51]} Nc6 {[%emt 0:02:03]} 10. O-O {[%emt 0:02:08]} e5 {[%emt 0:05:13]} 11. d5 {[%emt 0:07:45]} Ne7 {[%emt 0:00:36]} 12. Nc3 {[%emt 0:02:59]} h6 {[%emt 0:02:48]} 13. Ba3 {[%emt 0:07:04]} Bg4 {[%emt 0:12:25]} 14. Ne4 {[%emt 0:11:11]} Nbc8 {[%emt 0:02:30]} 15. c5 {[%emt 0:05:19]} dxc5 {[%emt 0:06:41]} 16. d6 {[%emt 0:09:36]} Nc6 {[%emt 0:02:39]} 17. Bxc5 {[%emt 0:01:52]} f5 {[%emt 0:06:02]} 18. Qd5+ {[%emt 0:05:59]} Kh7 {[%emt 0:01:30]} 19. Ned2 {[%emt 0:09:52]} e4 {[%emt 0:10:19]} 20. Rae1 {[%emt 0:10:42]} exf3 {[%emt 0:01:21]} 21. Bxf3 {[%emt 0:00:09]} Bxf3 {[%emt 0:00:47]} 22. Nxf3 {[%emt 0:00:07]} Nb6 {[%emt 0:00:11]} 23. Qd3 {[%emt 0:00:48]} Nd7 {[%emt 0:00:38]} 24. Ba3 {[%emt 0:00:18]} Qa5 {[%emt 0:03:25]} 25. Bc1 {[%emt 0:01:11]} Nde5 {[%emt 0:00:19]} 26. Nxe5 {[%emt 0:01:08]} Nxe5 {[%emt 0:00:14]} 27. Qh3 {[%emt 0:00:24]} Rae8 {[%emt 0:06:22]} 28. Rd1 {[%emt 0:02:47]} Nd7 {[%emt 0:00:39]} 29. Qf3 {[%emt 0:01:51]} Re4 {[%emt 0:00:32]} 30. a3 {[%emt 0:01:10]} Qc3 {[%emt 0:01:14]} 31. Rd3 {[%emt 0:00:49]} Qc6 {[%emt 0:00:16]} 32. Qd1 {[%emt 0:01:17]} Rfe8 {[%emt 0:00:33]} 33. Qd2 {[%emt 0:04:01]} Re2 {[%emt 0:00:52]} 34. Qf4 {[%emt 0:00:24]} Re1 {[%emt 0:01:12]} 35. Rd1 {[%emt 0:00:31]} Rxf1+ {[%emt 0:00:32]} 36. Rxf1 {[%emt 0:00:06]} Re4 {[%emt 0:00:28]} 37. Qg3 {[%emt 0:00:21]} Rg4 {[%emt 0:00:18]} 38. Qh3 {[%emt 0:00:11]} Qxd6 {[%emt 0:00:45]} 39. Qf3 {[%emt 0:00:07]} Re4 {[%emt 0:00:31]} 40. Rd1 {[%emt 0:00:16]} Ne5 {[%emt 0:00:40]} 0-1

[Event "15th Governor Cup 2019"]
[Site "Khanty-Mansiysk"]
[Date "2019.11.20"]
[Round "3.22"]
[White "Dorofeeva, Nyurguiaana"]
[Black "Mochalin, Faddey"]
[Result "0-1"]
[ECO "D02"]
[WhiteElo "1848"]
[BlackElo "2188"]
[Annotator "ChessBase"]
[PlyCount "102"]
[EventDate "2019.11.19"]
[EventType "swiss"]
[EventCountry "RUS"]
[SourceTitle "playchess.com"]
[Source "ChessBase"]
[SourceQuality "1"]
[TimeControl "5400+30"]

1. d4 {[%emt 0:00:00]} d5 {[%emt 0:00:00]} 2. Nf3 {[%emt 0:00:00]} Nf6 {[%emt 0:00:00]} 3. Bf4 {[%emt 0:00:01]} c5 {[%emt 0:00:02]} 4. e3 {[%emt 0:00:09]} Nc6 {[%emt 0:00:13]} 5. c3 {[%emt 0:00:29]} Qb6 {[%emt 0:00:11]} 6. Qc1 {[%emt 0:00:59]} Bf5 {[%emt 0:01:30]} 7. Nbd2 {[%emt 0:01:01]} e6 {[%emt 0:01:17]} 8. h3 {[%emt 0:01:08]} h6 {[%emt 0:00:52]} 9. Be2 {[%emt 0:00:40]} Be7 {[%emt 0:00:44]} 10. O-O {[%emt 0:00:55]} O-O {[%emt 0:00:36]} 11. Bd1 {[%emt 0:02:37]} Rac8 {[%emt 0:01:35]} 12. dxc5 {[%emt 0:03:26]} Qxc5 {[%emt 0:02:05]} 13. Nb3 {[%emt 0:02:18]} Qb6 {[%emt 0:00:44]} 14. Bc2 {[%emt 0:03:34]} Bxc2 {[%emt 0:04:00]} 15. Qxc2 {[%emt 0:00:08]} Qa6 {[%emt 0:02:30]} 16. Qd1 {[%emt 0:03:25]} b5 {[%emt 0:02:49]} 17. a3 {[%emt 0:06:51]} Nd7 {[%emt 0:04:45]} 18. Qe2 {[%emt 0:03:41]} Nb6 {[%emt 0:01:21]} 19. Nbd4 {[%emt 0:02:24]} Nxd4 {[%emt 0:05:12]} 20. Nxd4 {[%emt 0:02:10]} Nc4 {[%emt 0:02:27]} 21. a4 {[%emt 0:05:01]} e5 {[%emt 0:01:40]} 22. axb5 {[%emt 0:09:47]} Qf6 {[%emt 0:00:29]} 23. Bxe5 {[%emt 0:11:17]} Nxe5 {[%emt 0:03:00]} 24. Rxa7 {[%emt 0:00:58]} Bc5 {[%emt 0:01:08]} 25. Ra6 {[%emt 0:00:30]} Qe7 {[%emt 0:02:33]} 26. Nf5 {[%emt 0:06:58]} Qg5 {[%emt 0:02:38]} 27. e4 {[%emt 0:01:15]} g6 {[%emt 0:01:54]} 28. h4 {[%emt 0:00:51]} Qf4 {[%emt 0:00:37]} 29. g3 {[%emt 0:03:18]} Qxe4 {[%emt 0:02:45]} 30. Qxe4 {[%emt 0:07:07]} dxe4 {[%emt 0:00:09]} 31. Ne3 {[%emt 0:00:31]} Bxe3 {[%emt 0:00:54]} 32. fxe3 {[%emt 0:00:06]} Nc4 {[%emt 0:00:16]} 33. b3 {[%emt 0:03:22]} Nxe3 {[%emt 0:00:28]} 34. Rc1 {[%emt 0:00:24]} Nf5 {[%emt 0:01:54]} 35. Kg2 {[%emt 0:00:35]} e3 {[%emt 0:00:21]} 36. c4 {[%emt 0:00:49]} Rfe8 {[%emt 0:00:34]} 37. b6 {[%emt 0:01:06]} Nd4 {[%emt 0:01:17]} 38. b4 {[%emt 0:02:51]} e2 {[%emt 0:01:49]} 39. b7 {[%emt 0:07:58]} Rb8 {[%emt 0:02:01]} 40. Ra8 {[%emt 0:00:21]} Rxa8 {[%emt 0:01:00]} 41. bxa8=Q Rxa8 {[%emt 0:00:13]} 42. Kf2 {[%emt 0:00:33]} Re8 {[%emt 0:00:24]} 43. Re1 {[%emt 0:00:24]} Nc2 {[%emt 0:00:27]} 44. Rxe2 {[%emt 0:00:13]} Rxe2+ {[%emt 0:00:08]} 45. Kxe2 {[%emt 0:00:06]} Nxb4 {[%emt 0:00:07]} 46. Ke3 {[%emt 0:00:16]} Kf8 {[%emt 0:00:15]} 47. Ke4 {[%emt 0:00:44]} Ke7 {[%emt 0:00:16]} 48. g4 {[%emt 0:00:39]} Ke6 {[%emt 0:00:20]} 49. g5 {[%emt 0:01:20]} hxg5 {[%emt 0:00:31]} 50. hxg5 {[%emt 0:00:06]} Nc6 {[%emt 0:00:13]} 51. Kf4 {[%emt 0:01:40]} Ne5 {[%emt 0:00:13] Kxe5+ Kxe5} 0-1

[Event "15th Governor Cup 2019"]
[Site "Khanty-Mansiysk"]
[Date "2019.11.21"]
[Round "4.5"]
[White "Goganov, Aleksey"]
[Black "Iljiushenok, Ilia"]
[Result "1-0"]
[ECO "E46"]
[WhiteElo "2565"]
[BlackElo "2532"]
[Annotator "RC"]
[PlyCount "61"]
[EventDate "2019.11.19"]
[EventType "swiss"]
[EventCountry "RUS"]
[SourceTitle "playchess.com"]
[Source "ChessBase"]
[SourceQuality "1"]
[TimeControl "5400+30"]

1. d4 {[%emt 0:00:00]} Nf6 {[%emt 0:00:00]} 2. c4 {[%emt 0:00:00]} e6 {[%emt 0:00:00]} 3. Nc3 {[%emt 0:00:00]} Bb4 {[%emt 0:00:07]} 4. e3 {[%emt 0:00:00]} O-O {[%emt 0:00:22]} 5. Bd2 {[%emt 0:02:16]} b6 {[%emt 0:07:09]} 6. Nf3 {[%emt 0:00:36]} Bb7 {[%emt 0:00:54]} 7. Bd3 {[%emt 0:00:21]} d5 {[%emt 0:02:19]} 8. cxd5 {[%emt 0:00:07]} exd5 {[%emt 0:02:01]} 9. Rc1 {[%emt 0:08:49]} a6 {[%emt 0:05:30]} 10. Ne5 {[%emt 0:11:06]} Bd6 {[%emt 0:05:27]} 11. O-O {[%emt 0:00:32]} Qe7 {[%emt 0:16:46]} 12. f4 {[%emt 0:00:50]} c5 {[%emt 0:02:10]} 13. Qf3 {[%emt 0:16:44]} c4 {[%emt 0:25:57]} 14. Bb1 {[%emt 0:00:44]} b5 {[%emt 0:00:07]} 15. Be1 {[%emt 0:05:47]} Nbd7 {[%emt 0:06:33]} 16. Qh3 {[%emt 0:05:28]} Bxe5 {[%emt 0:05:27]} 17. Bh4 {[%emt 0:10:04]} Qe8 {[%emt 0:08:52]} 18. fxe5 {[%emt 0:06:32]} Ne4 {[%emt 0:00:37]} 19. Nxe4 {[%emt 0:05:15]} dxe4 {[%emt 0:00:01]} 20. Rf5 {[%emt 0:09:46]} f6 {[%emt 0:07:47]} 21. exf6 {[%emt 0:00:05]} Nxf6 {[%emt 0:00:06]} 22. Bxf6 {[%emt 0:00:05]} Rxf6 {[%emt 0:00:03]} 23. Rxf6 {[%emt 0:00:13]} gxf6 {[%emt 0:00:03]} 24. Rf1 {[%emt 0:01:05]} Qg6 {[%emt 0:02:38]} 25. Qe6+ {[%emt 0:01:43]} Kg7 {[%emt 0:00:08]} 26. Rf4 {[%emt 0:00:34]} Re8 {[%emt 0:01:21]} 27. Qd7+ {[%emt 0:00:48]} Qf7 {[%emt 0:00:01]} 28. Rg4+ {[%emt 0:00:41]} Kf8 {[%emt 0:00:01]} 29. Qd6+ {[%emt 0:00:06]} Re7 {[%emt 0:00:28]} 30. Bxe4 {[%emt 0:00:47]} f5 {[%emt 0:01:16]} 31. Bxf5 {[%emt 0:00:37]} 1-0

[Event "15th Governor Cup 2019"]
[Site "Khanty-Mansiysk"]
[Date "2019.11.21"]
[Round "4.7"]
[White "Chinguun, Sumiya"]
[Black "Bocharov, Dmitry"]
[Result "0-1"]
[ECO "B92"]
[WhiteElo "2307"]
[BlackElo "2519"]
[Annotator "ChessBase"]
[PlyCount "68"]
[EventDate "2019.11.19"]
[EventType "swiss"]
[EventCountry "RUS"]
[SourceTitle "playchess.com"]
[Source "ChessBase"]
[SourceQuality "1"]
[TimeControl "5400+30"]

1. e4 {[%emt 0:00:00]} c5 {[%emt 0:16:06]} 2. Nf3 {[%emt 0:00:26]} d6 {[%emt 0:00:26]} 3. d4 {[%emt 0:00:32]} cxd4 {[%emt 0:00:07]} 4. Nxd4 {[%emt 0:00:10]} Nf6 {[%emt 0:00:08]} 5. Nc3 {[%emt 0:00:30]} a6 {[%emt 0:00:29]} 6. Be2 {[%emt 0:00:26]} g6 {[%emt 0:03:15]} 7. Be3 {[%emt 0:02:23]} Nbd7 {[%emt 0:02:34]} 8. Qd2 {[%emt 0:07:51]} b5 {[%emt 0:00:46]} 9. a4 {[%emt 0:05:03]} b4 {[%emt 0:03:22]} 10. Nd5 {[%emt 0:00:31]} Bb7 {[%emt 0:32:39]} 11. Bf3 {[%emt 0:15:48]} e5 {[%emt 0:07:03]} 12. Nb3 {[%emt 0:00:24]} Nxd5 {[%emt 0:05:31]} 13. exd5 {[%emt 0:00:14]} a5 {[%emt 0:00:09]} 14. h4 {[%emt 0:01:51]} h5 {[%emt 0:03:28]} 15. Bg5 {[%emt 0:04:58]} f6 {[%emt 0:03:00]} 16. Qd3 {[%emt 0:02:15]} Kf7 {[%emt 0:00:46]} 17. Be3 {[%emt 0:05:05]} f5 {[%emt 0:01:30]} 18. Be2 {[%emt 0:01:01]} Bg7 {[%emt 0:02:41]} 19. f3 {[%emt 0:01:35]} Qc7 {[%emt 0:02:36]} 20. g4 {[%emt 0:03:35]} e4 {[%emt 0:06:13]} 21. fxe4 {[%emt 0:01:04]} Bxb2 {[%emt 0:05:16]} 22. O-O {[%emt 0:04:13]} Ne5 {[%emt 0:00:35]} 23. Qd1 {[%emt 0:00:45]} Bxa1 {[%emt 0:01:23]} 24. exf5 {[%emt 0:02:11]} Bc3 {[%emt 0:00:18]} 25. fxg6+ {[%emt 0:00:16]} Kxg6 {[%emt 0:01:11]} 26. gxh5+ {[%emt 0:00:56]} Kg7 {[%emt 0:00:13]} 27. Rf5 {[%emt 0:00:48]} Rhg8 {[%emt 0:00:40]} 28. Kh2 {[%emt 0:01:41]} Raf8 {[%emt 0:00:38]} 29. Qf1 {[%emt 0:03:05]} Rxf5 {[%emt 0:00:12]} 30. Qxf5 {[%emt 0:00:25]} Qf7 {[%emt 0:00:37]} 31. Qg5+ {[%emt 0:00:13]} Kh8 {[%emt 0:00:23]} 32. Qh6+ {[%emt 0:00:12]} Qh7 {[%emt 0:00:09]} 33. Qxd6 {[%emt 0:00:20]} Qg7 {[%emt 0:00:16]} 34. Bg5 {[%emt 0:00:10]} Nf3+ {[%emt 0:00:27]} 0-1

[Event "15th Governor Cup 2019"]
[Site "Khanty-Mansiysk"]
[Date "2019.11.21"]
[Round "4.8"]
[White "Safin, Robert"]
[Black "Potapov, Pavel"]
[Result "1/2-1/2"]
[ECO "A40"]
[WhiteElo "2182"]
[BlackElo "2489"]
[Annotator "ChessBase"]
[PlyCount "79"]
[EventDate "2019.11.19"]
[EventType "swiss"]
[EventCountry "RUS"]
[SourceTitle "playchess.com"]
[Source "ChessBase"]
[SourceQuality "1"]
[TimeControl "5400+30"]

1. d4 {[%emt 0:00:00]} Nf6 {[%emt 0:00:00]} 2. c4 {[%emt 0:00:00]} e6 {[%emt 0:00:00]} 3. g3 {[%emt 0:00:00]} d5 {[%emt 0:00:39]} 4. Nf3 {[%emt 0:00:00]} Bb4+ {[%emt 0:01:09]} 5. Bd2 {[%emt 0:00:00]} Be7 {[%emt 0:00:27]} 6. Bg2 {[%emt 0:00:09]} O-O {[%emt 0:00:07]} 7. Qc2 {[%emt 0:00:03]} Nbd7 {[%emt 0:01:23]} 8. O-O {[%emt 0:00:08]} c6 {[%emt 0:00:09]} 9. Rc1 {[%emt 0:00:04]} h6 {[%emt 0:04:10]} 10. Be1 {[%emt 0:01:26]} b6 {[%emt 0:05:37]} 11. cxd5 {[%emt 0:03:01]} cxd5 {[%emt 0:00:24]} 12. Nc3 {[%emt 0:09:05]} Bb7 {[%emt 0:02:07]} 13. Nb5 {[%emt 0:06:52]} a6 {[%emt 0:07:13]} 14. Qc7 {[%emt 0:01:12]} Rb8 {[%emt 0:03:18]} 15. Qxd8 {[%emt 0:00:49]} Rbxd8 {[%emt 0:00:49]} 16. Na7 {[%emt 0:01:31]} Bd6 {[%emt 0:04:54]} 17. Nc6 {[%emt 0:00:22]} Rc8 {[%emt 0:01:02]} 18. Nce5 {[%emt 0:06:40]} Rfd8 {[%emt 0:06:44]} 19. e3 {[%emt 0:01:53]} Kf8 {[%emt 0:01:29]} 20. a3 {[%emt 0:00:25]} Ke7 {[%emt 0:05:34]} 21. Nd3 {[%emt 0:06:35]} Ne8 {[%emt 0:03:54]} 22. Bb4 {[%emt 0:02:24]} f6 {[%emt 0:01:11]} 23. Nd2 {[%emt 0:01:02]} a5 {[%emt 0:02:45]} 24. Bxd6+ {[%emt 0:00:28]} Nxd6 {[%emt 0:00:09]} 25. Rxc8 {[%emt 0:12:23]} Rxc8 {[%emt 0:01:17]} 26. Rc1 {[%emt 0:00:05]} Rxc1+ {[%emt 0:02:58]} 27. Nxc1 {[%emt 0:00:01]} Ba6 {[%emt 0:00:30]} 28. f4 {[%emt 0:00:26]} g5 {[%emt 0:07:55]} 29. Kf2 {[%emt 0:00:41]} g4 {[%emt 0:05:13]} 30. e4 {[%emt 0:09:18]} dxe4 {[%emt 0:00:24]} 31. Bxe4 {[%emt 0:00:10]} f5 {[%emt 0:03:25]} 32. Bg2 {[%emt 0:07:02]} Nf6 {[%emt 0:03:16]} 33. Na2 {[%emt 0:02:25]} Nc4 {[%emt 0:04:56]} 34. Nxc4 {[%emt 0:00:12]} Bxc4 {[%emt 0:00:03]} 35. Nc3 {[%emt 0:00:11]} Kd6 {[%emt 0:00:28]} 36. Ke3 {[%emt 0:00:33]} Bd5 {[%emt 0:03:10]} 37. Bf1 {[%emt 0:00:16]} Bc6 {[%emt 0:01:45]} 38. Bc4 {[%emt 0:00:49]} Bd5 {[%emt 0:04:40]} 39. Bf1 {[%emt 0:00:06]} Bc6 {[%emt 0:00:42]} 40. Bc4 {[%emt 0:00:04] Ke5 Ke4+} 1/2-1/2

[Event "15th Governor Cup 2019"]
[Site "Khanty-Mansiysk"]
[Date "2019.11.21"]
[Round "4.9"]
[White "Afanasiev, Nikita"]
[Black "Lugovskoy, Maxim"]
[Result "0-1"]
[ECO "A14"]
[WhiteElo "2508"]
[BlackElo "2444"]
[Annotator "ChessBase"]
[PlyCount "86"]
[EventDate "2019.11.19"]
[EventType "swiss"]
[EventCountry "RUS"]
[SourceTitle "playchess.com"]
[Source "ChessBase"]
[SourceQuality "1"]
[TimeControl "5400+30"]

1. c4 {[%emt 0:16:52]} e6 {[%emt 0:00:24]} 2. Nf3 {[%emt 0:00:06]} Nf6 {[%emt 0:00:30]} 3. g3 {[%emt 0:00:05]} d5 {[%emt 0:01:01]} 4. Bg2 {[%emt 0:00:05]} Be7 {[%emt 0:00:18]} 5. O-O {[%emt 0:00:08]} O-O {[%emt 0:00:07]} 6. b3 {[%emt 0:00:09]} c5 {[%emt 0:02:09]} 7. Bb2 {[%emt 0:00:40]} Nc6 {[%emt 0:00:14]} 8. e3 {[%emt 0:01:25]} b6 {[%emt 0:01:19]} 9. Qe2 {[%emt 0:00:22]} Bb7 {[%emt 0:00:14]} 10. Rd1 {[%emt 0:05:49]} Qc7 {[%emt 0:12:46]} 11. Nc3 {[%emt 0:01:04]} Rfd8 {[%emt 0:01:10]} 12. Rac1 {[%emt 0:11:33]} dxc4 {[%emt 0:05:07]} 13. bxc4 {[%emt 0:00:16]} Rd7 {[%emt 0:01:47]} 14. Nb5 {[%emt 0:11:44]} Qd8 {[%emt 0:02:01]} 15. d4 {[%emt 0:01:53]} cxd4 {[%emt 0:13:35]} 16. exd4 {[%emt 0:02:55]} a6 {[%emt 0:03:06]} 17. Nc3 {[%emt 0:03:24]} Rc8 {[%emt 0:03:22]} 18. d5 {[%emt 0:11:22]} exd5 {[%emt 0:00:41]} 19. cxd5 {[%emt 0:01:30]} Nxd5 {[%emt 0:01:18]} 20. Bh3 {[%emt 0:00:25]} Nxc3 {[%emt 0:15:58]} 21. Bxc3 {[%emt 0:00:09]} Rcc7 {[%emt 0:00:10]} 22. Bxd7 {[%emt 0:12:49]} Rxd7 {[%emt 0:00:13]} 23. Ne5 {[%emt 0:00:05]} Nxe5 {[%emt 0:01:03]} 24. Bxe5 {[%emt 0:00:06]} Bf8 {[%emt 0:01:09]} 25. h4 {[%emt 0:09:41]} Rd5 {[%emt 0:02:01]} 26. Kh2 {[%emt 0:01:29]} Qd7 {[%emt 0:00:30]} 27. Bf4 {[%emt 0:01:44]} h6 {[%emt 0:01:47]} 28. Be3 {[%emt 0:03:47]} Qe6 {[%emt 0:00:46]} 29. Rxd5 {[%emt 0:00:46]} Bxd5 {[%emt 0:00:43]} 30. Qxa6 {[%emt 0:00:44]} Qe4 {[%emt 0:01:11]} 31. Rg1 {[%emt 0:00:26]} Bd6 {[%emt 0:00:51]} 32. Qc8+ {[%emt 0:01:06]} Kh7 {[%emt 0:00:01]} 33. Qd8 {[%emt 0:00:08]} Be5 {[%emt 0:02:45]} 34. Bxb6 {[%emt 0:01:41]} g5 {[%emt 0:00:16]} 35. Qd7 {[%emt 0:00:31]} Be6 {[%emt 0:00:10]} 36. Qd2 {[%emt 0:00:27]} Qxh4+ {[%emt 0:00:06]} 37. Kg2 {[%emt 0:00:04]} Bh3+ {[%emt 0:04:32]} 38. Kf3 {[%emt 0:00:02]} Qg4+ {[%emt 0:00:14]} 39. Ke3 {[%emt 0:00:00]} Qe6 {[%emt 0:00:21]} 40. Qd3+ {[%emt 0:00:29]} Bf5 {[%emt 0:00:08]} 41. Qb3 {[%emt 0:00:04]} Bf4+ {[%emt 0:00:25]} 42. Kd4 {[%emt 0:00:00]} Qe5+ {[%emt 0:00:07]} 43. Kc4 {[%emt 0:00:03]} Be6+ {[%emt 0:00:04] Kd4} 0-1

[Event "15th Governor Cup 2019"]
[Site "Khanty-Mansiysk"]
[Date "2019.11.21"]
[Round "4.10"]
[White "Zakaryan, David"]
[Black "Khanin, Semen"]
[Result "1/2-1/2"]
[ECO "E01"]
[WhiteElo "2338"]
[BlackElo "2503"]
[Annotator "ChessBase"]
[PlyCount "86"]
[EventDate "2019.11.19"]
[EventType "swiss"]
[EventCountry "RUS"]
[SourceTitle "playchess.com"]
[Source "ChessBase"]
[SourceQuality "1"]
[TimeControl "5400+30"]

1. d4 {[%emt 0:08:28]} Nf6 {[%emt 0:00:00]} 2. c4 {[%emt 0:03:52]} e6 {[%emt 0:00:00]} 3. g3 {[%emt 0:00:13]} d5 {[%emt 0:00:20]} 4. Bg2 {[%emt 0:00:11]} Bb4+ {[%emt 0:02:04]} 5. Bd2 {[%emt 0:02:16]} Bxd2+ {[%emt 0:02:29]} 6. Nxd2 {[%emt 0:01:26]} O-O {[%emt 0:01:03]} 7. Ngf3 {[%emt 0:00:08]} Qe7 {[%emt 0:08:40]} 8. O-O {[%emt 0:01:00]} Rd8 {[%emt 0:01:39]} 9. Qc2 {[%emt 0:00:50]} Nc6 {[%emt 0:01:07]} 10. Rac1 {[%emt 0:00:13]} dxc4 {[%emt 0:08:54]} 11. Qxc4 {[%emt 0:01:09]} e5 {[%emt 0:00:04]} 12. dxe5 {[%emt 0:03:05]} Nxe5 {[%emt 0:00:11]} 13. Nxe5 {[%emt 0:02:03]} Qxe5 {[%emt 0:00:16]} 14. Nf3 {[%emt 0:01:17]} Qxb2 {[%emt 0:01:52]} 15. Qxc7 {[%emt 0:00:15]} Be6 {[%emt 0:04:06]} 16. Rfd1 {[%emt 0:11:36]} Nd5 {[%emt 0:03:17]} 17. Qa5 {[%emt 0:07:20]} b6 {[%emt 0:09:14]} 18. Qd2 {[%emt 0:00:57]} Qxd2 {[%emt 0:02:14]} 19. Rxd2 {[%emt 0:00:54]} Nb4 {[%emt 0:01:10]} 20. a3 {[%emt 0:01:42]} Rxd2 {[%emt 0:01:10]} 21. Nxd2 {[%emt 0:00:05]} Rd8 {[%emt 0:00:04]} 22. axb4 {[%emt 0:03:50]} Rxd2 {[%emt 0:00:10]} 23. e3 {[%emt 0:00:29]} a5 {[%emt 0:04:29]} 24. bxa5 {[%emt 0:00:02]} bxa5 {[%emt 0:00:03]} 25. Bc6 {[%emt 0:00:08]} g6 {[%emt 0:02:50]} 26. Kg2 {[%emt 0:01:46]} Bb3 {[%emt 0:02:36]} 27. Ra1 {[%emt 0:07:23]} Ra2 {[%emt 0:01:36]} 28. Rb1 {[%emt 0:01:10]} a4 {[%emt 0:00:44]} 29. e4 {[%emt 0:00:04]} Rd2 {[%emt 0:04:06]} 30. Ra1 {[%emt 0:00:54]} Rd1 {[%emt 0:09:03]} 31. Ra3 {[%emt 0:01:51]} Rd4 {[%emt 0:01:08]} 32. Kf3 {[%emt 0:01:04]} Kf8 {[%emt 0:01:02]} 33. Ke3 {[%emt 0:00:13]} Rb4 {[%emt 0:00:05]} 34. Kd3 {[%emt 0:05:04]} Ke7 {[%emt 0:00:59]} 35. e5 {[%emt 0:01:05]} g5 {[%emt 0:04:52]} 36. f3 {[%emt 0:00:38]} Bd1 {[%emt 0:13:02]} 37. Kd2 {[%emt 0:02:37]} Rd4+ {[%emt 0:03:41]} 38. Kc3 {[%emt 0:00:45]} Rd8 {[%emt 0:00:03]} 39. Bxa4 {[%emt 0:05:41]} Bxf3 {[%emt 0:00:05]} 40. Bc2 {[%emt 0:03:58]} Ke6 {[%emt 0:01:53]} 41. Bxh7 {[%emt 0:00:26]} Kxe5 {[%emt 0:00:20]} 42. Ra5+ {[%emt 0:00:05]} Bd5 {[%emt 0:00:09]} 43. Bd3 {[%emt 0:00:04]} Rc8+ {[%emt 0:02:15]} 1/2-1/2

[Event "15th Governor Cup 2019"]
[Site "Khanty-Mansiysk"]
[Date "2019.11.21"]
[Round "4.11"]
[White "Bilguun, Sumiya"]
[Black "Martynyuk, Elizaveta"]
[Result "1-0"]
[ECO "B47"]
[WhiteElo "2496"]
[BlackElo "2020"]
[Annotator "ChessBase"]
[PlyCount "59"]
[EventDate "2019.11.19"]
[EventType "swiss"]
[EventCountry "RUS"]
[SourceTitle "playchess.com"]
[Source "ChessBase"]
[SourceQuality "1"]
[TimeControl "5400+30"]

1. e4 {[%emt 0:00:00]} c5 {[%emt 0:09:02]} 2. Nf3 {[%emt 0:00:00]} e6 {[%emt 0:00:20]} 3. d4 {[%emt 0:00:12]} cxd4 {[%emt 0:00:03]} 4. Nxd4 {[%emt 0:00:12]} Nc6 {[%emt 0:00:04]} 5. Nc3 {[%emt 0:00:16]} Qc7 {[%emt 0:00:10]} 6. g3 {[%emt 0:00:30]} a6 {[%emt 0:00:08]} 7. Bg2 {[%emt 0:00:08]} Nf6 {[%emt 0:00:09]} 8. O-O {[%emt 0:00:16]} Bc5 {[%emt 0:00:05]} 9. Be3 {[%emt 0:13:04]} Ne5 {[%emt 0:00:35]} 10. Bf4 {[%emt 0:02:21]} d6 {[%emt 0:06:28]} 11. Nb3 {[%emt 0:15:58]} Ba7 {[%emt 0:09:03]} 12. Qe2 {[%emt 0:00:20]} Bd7 {[%emt 0:07:04]} 13. Rad1 {[%emt 0:02:54]} b5 {[%emt 0:05:47]} 14. Qd2 {[%emt 0:02:36]} Nc4 {[%emt 0:10:23]} 15. Qc1 {[%emt 0:03:05]} Rc8 {[%emt 0:00:38]} 16. Bxd6 {[%emt 0:04:26]} Nxd6 {[%emt 0:00:25]} 17. e5 {[%emt 0:00:10]} Nf5 {[%emt 0:10:27]} 18. exf6 {[%emt 0:00:38]} gxf6 {[%emt 0:00:44]} 19. Ne4 {[%emt 0:00:34]} Ke7 {[%emt 0:03:20]} 20. Qd2 {[%emt 0:01:25]} a5 {[%emt 0:10:29]} 21. Nxa5 {[%emt 0:00:55]} Bd4 {[%emt 0:08:05]} 22. Qb4+ {[%emt 0:11:17]} Bc5 {[%emt 0:01:19]} 23. Qc3 {[%emt 0:01:30]} e5 {[%emt 0:04:08]} 24. Rxd7+ {[%emt 0:03:42]} Qxd7 {[%emt 0:05:30]} 25. Nxc5 {[%emt 0:00:14]} Qd4 {[%emt 0:00:21]} 26. Qf3 {[%emt 0:01:21]} Qxc5 {[%emt 0:00:30]} 27. Qxf5 {[%emt 0:00:25]} Qxc2 {[%emt 0:00:06]} 28. Be4 {[%emt 0:00:21]} Qxb2 {[%emt 0:04:59]} 29. Nc6+ {[%emt 0:02:59]} Rxc6 {[%emt 0:02:32]} 30. Bxc6 {[%emt 0:00:11]} 1-0